bitfinex/quotes_SOLUSD_20220212
["timestamp","ask_amount","ask_price","bid_price","bid_amount"]
[1644645408430,45.96577427,96.057,95.99,17.09868765]
[1644645408830,45.96577427,96.057,95.991,25.65008765]
[1644645409231,45.96577427,96.057,95.994,1.47168765]
[1644645409631,45.96577427,96.057,95.995,0.47168765]
[1644645409830,45.96577427,96.057,95.991,24.1784]
[1644645410434,45.96577427,96.057,96.0,15.6255]
[1644645410834,45.96577427,96.057,96.001,5.206]
[1644645414038,5.206,96.069,96.001,5.206]
[1644645414239,2.89265095,96.136,95.989,15.6514]
[1644645414240,5.206,96.076,96.01,15.624]
[1644645414436,5.206,96.091,96.02,0.024]
[1644645414640,5.206,96.091,96.012,24.0365]
[1644645414836,5.205,96.12,96.02,15.0]
[1644645415036,37.6145698,96.119,96.03,0.024]
[1644645415239,42.8185698,96.119,96.04,30.618]
[1644645415437,42.8185698,96.119,96.041,22.7727]
[1644645415638,2.33466393,96.118,96.041,22.7727]
[1644645415839,5.204,96.117,96.041,22.7727]
[1644645416039,29.3664,96.117,96.041,22.7727]
[1644645416841,15.6188,96.11,96.041,22.7727]
[1644645417041,5.204,96.109,96.041,22.7727]
[1644645417243,5.204,96.109,96.04,0.024]
[1644645417442,2.33466393,96.108,96.03,0.024]
[1644645417641,7.53866393,96.108,96.02,0.024]
[1644645417845,2.33466393,96.108,96.02,0.024]
[1644645418044,7.53866393,96.107,96.02,0.024]
[1644645418247,2.33466393,96.107,96.03,0.024]
[1644645418447,7.53866393,96.106,96.02,0.024]
[1644645418643,2.33466393,96.106,96.03,0.024]
[1644645418843,15.6209,96.1,96.02,15.6466]
[1644645419045,15.6209,96.1,96.03,0.024]
[1644645419243,29.1782,96.099,96.02,10.6466]
[1644645420849,44.14614318,96.089,96.02,10.6466]
[1644645421050,5.205,96.088,96.02,10.6466]
[1644645422450,5.205,96.088,96.021,5.205]
[1644645422850,29.2054,96.088,96.021,5.205]
[1644645426954,29.2054,96.088,96.02,10.6466]
[1644645428159,24.0004,96.088,96.02,10.6466]
[1644645428355,5.205,96.089,96.02,25.6466]
[1644645428655,5.205,96.115,96.04,15.6168]
[1644645428877,30.0707,96.139,96.041,23.6182]
[1644645429059,30.0707,96.139,96.041,28.8222]
[1644645429259,38.43100725,96.115,96.041,28.8222]
[1644645430259,38.43100725,96.115,96.05,15.6162]
[1644645430460,38.43100725,96.115,96.051,51.02355593]
[1644645430859,15.6154,96.13,96.051,51.02355593]
[1644645431060,5.204,96.138,96.052,23.4206]
[1644645431259,5.204,96.138,96.053,5.203]
[1644645432161,43.72810197,96.137,96.06,15.6144]
[1644645432363,5.202,96.136,96.061,5.202]
[1644645436065,5.202,96.136,96.07,15.6128]
[1644645436484,5.202,96.136,96.071,5.202]
[1644645437384,5.202,96.136,96.072,22.7317]
[1644645437583,5.202,96.136,96.073,5.202]
[1644645437786,5.202,96.136,96.072,22.7317]
[1644645442587,15.6154,96.13,96.072,22.7317]
[1644645442789,5.202,96.129,96.072,22.7317]
[1644645443187,5.202,96.136,96.072,22.7317]
[1644645443388,5.202,96.136,96.053,23.0327]
[1644645443590,5.202,96.136,96.054,23.7695]
[1644645443791,15.6173,96.12,96.054,23.7695]
[1644645443989,29.3078,96.119,96.054,23.7695]
[1644645445396,24.1048,96.119,96.055,5.203]
[1644645445995,20.2448,96.119,96.055,5.203]
[1644645456010,20.2448,96.119,96.06,15.6145]
[1644645456511,5.203,96.136,96.06,15.6145]
[1644645456711,28.417,96.151,96.061,5.203]
[1644645456914,28.417,96.151,96.06,15.0]
[1644645457112,28.417,96.151,96.061,5.202]
[1644645458019,23.214,96.151,96.07,15.6118]
[1644645458215,5.202,96.15,96.08,15.0]
[1644645458617,5.202,96.15,96.081,46.01606173]
[1644645458818,5.202,96.15,96.09,15.6096]
[1644645459017,23.214,96.151,96.09,15.6096]
[1644645460118,15.64755149,96.17,96.09,15.6096]
[1644645460318,28.1442,96.169,96.1,15.6067]
[1644645460520,22.9442,96.169,96.101,5.2]
[1644645460919,22.9442,96.169,96.102,23.2005]
[1644645461118,22.9442,96.169,96.103,5.2]
[1644645461921,22.9442,96.169,96.111,44.06472995]
[1644645462742,5.2,96.175,96.12,15.6048]
[1644645462941,0.03845149,96.18,96.12,15.6048]
[1644645463241,0.03845149,96.18,96.13,15.0]
[1644645463442,0.03845149,96.2,96.13,15.0]
[1644645464743,0.03845149,96.2,96.13,30.6019]
[1644645466045,5.199,96.199,96.13,30.6019]
[1644645466445,23.0662,96.198,96.13,30.6019]
[1644645466647,5.199,96.197,96.13,30.6019]
[1644645468748,5.199,96.188,96.13,30.6019]
[1644645469148,5.199,96.188,96.13,15.6019]
[1644645469347,5.199,96.188,96.121,28.4809]
[1644645469547,22.8325,96.187,96.121,28.4809]
[1644645469750,5.199,96.186,96.121,28.4809]
[1644645470450,2.33466534,96.185,96.121,28.4809]
[1644645470648,5.2,96.184,96.121,28.4809]
[1644645471049,5.2,96.186,96.121,28.4809]
[1644645471249,5.2,96.183,96.121,28.4809]
[1644645471448,2.33466534,96.184,96.121,28.4809]
[1644645471649,22.8325,96.187,96.121,28.4809]
[1644645471650,22.8325,96.187,96.121,23.2809]
[1644645472050,2.33466534,96.186,96.121,23.2809]
[1644645472253,5.2,96.185,96.121,23.2809]
[1644645472453,15.6072,96.18,96.111,44.06472995]
[1644645472652,5.2,96.179,96.111,44.06472995]
[1644645472853,7.53466534,96.179,96.111,44.06472995]
[1644645473053,7.53466534,96.179,96.074,5.2]
[1644645473253,2.33466534,96.178,96.07,15.0]
[1644645473451,5.2,96.177,96.07,15.0]
[1644645473755,2.33466534,96.176,96.07,15.0]
[1644645473953,29.8869,96.175,96.071,71.37244621]
[1644645474355,2.33466534,96.174,96.071,71.37244621]
[1644645474553,42.17658293,96.173,96.072,5.2]
[1644645474756,15.611,96.16,96.072,5.2]
[1644645474953,5.202,96.159,96.072,5.2]
[1644645475153,23.3178,96.158,96.072,5.2]
[1644645475953,15.6121,96.15,96.072,5.2]
[1644645476157,5.202,96.149,96.071,71.37244621]
[1644645476355,7.53666534,96.149,96.071,71.37244621]
[1644645476555,5.202,96.149,96.071,71.37244621]
[1644645478760,7.53666534,96.149,96.071,71.37244621]
[1644645479461,5.202,96.149,96.071,71.37244621]
[1644645480665,5.202,96.149,96.072,5.202]
[1644645481866,7.53666534,96.149,96.072,5.202]
[1644645482666,5.202,96.149,96.072,5.202]
[1644645482866,5.202,96.149,96.071,71.37244621]
[1644645483869,23.3178,96.158,96.08,15.6106]
[1644645484269,23.3178,96.158,96.09,15.0]
[1644645484469,23.3178,96.158,96.091,23.7871]
[1644645485668,23.3178,96.158,96.092,2.38366791]
[1644645485869,23.3178,96.158,96.101,38.97964221]
[1644645487071,5.2,96.157,96.101,38.97964221]
[1644645488369,23.3178,96.158,96.102,5.2]
[1644645488571,23.3178,96.158,96.102,7.58366791]
[1644645488868,23.3178,96.158,96.103,2.38366791]
[1644645489269,23.3178,96.158,96.102,28.4477]
[1644645489669,5.2,96.157,96.102,28.4477]
[1644645489869,5.2,96.157,96.102,23.2477]
[1644645495781,23.3178,96.158,96.102,23.2477]
[1644645499400,5.2,96.157,96.102,23.2477]
[1644645502505,20.6072,96.157,96.09,15.6085]
[1644645502704,2.33466534,96.156,96.073,5.2]
[1644645502902,2.33466534,96.156,96.056,5.2]
[1644645502903,5.202,96.155,96.056,5.2]
[1644645503102,5.202,96.155,96.051,29.7387]
[1644645503304,2.33466534,96.154,96.051,29.7387]
[1644645503502,2.33466534,96.154,96.052,36.09413284]
[1644645503702,15.612,96.15,96.053,5.202]
[1644645503902,15.0,96.14,96.053,5.202]
[1644645504105,65.16853025,96.139,96.053,5.202]
[1644645504304,70.37153025,96.139,96.053,5.202]
[1644645505910,15.616,96.13,96.053,5.202]
[1644645506209,5.203,96.129,96.053,5.202]
[1644645506607,23.5405,96.128,96.053,5.202]
[1644645506809,5.203,96.127,96.053,5.202]
[1644645508312,23.5405,96.128,96.053,5.202]
[1644645509311,23.5405,96.128,96.06,15.6132]
[1644645513015,23.5405,96.128,96.061,5.203]
[1644645513215,23.5405,96.128,96.062,23.1339]
[1644645513415,23.5405,96.128,96.063,5.203]
[1644645518622,23.5405,96.128,96.062,23.1339]
[1644645521032,23.5405,96.128,96.063,5.203]
[1644645522853,5.203,96.156,96.07,15.6112]
[1644645523056,23.5292,96.157,96.08,15.0]
[1644645523255,24.4482,96.156,96.081,22.9016]
[1644645523454,24.4482,96.156,96.081,28.1016]
[1644645523859,44.05690479,96.155,96.082,43.0061907]
[1644645524057,49.25690479,96.155,96.082,43.0061907]
[1644645524256,49.25690479,96.155,96.09,15.6078]
[1644645525559,44.05690479,96.155,96.09,15.6078]
[1644645527962,5.2,96.154,96.09,15.6078]
[1644645530864,44.05690479,96.155,96.091,5.2]
[1644645532065,5.2,96.154,96.092,23.3547]
[1644645533069,5.2,96.154,96.1,15.607]
[1644645533267,24.4482,96.156,96.1,15.607]
[1644645533467,5.2,96.155,96.1,15.607]
[1644645536570,24.4482,96.156,96.101,5.2]
[1644645536769,24.4482,96.156,96.11,15.6045]
[1644645536970,24.4482,96.156,96.111,40.39366071]
[1644645537172,36.51044893,96.17,96.111,45.59366071]
[1644645537374,0.03845149,96.18,96.112,24.4463]
[1644645537569,0.03845149,96.18,96.113,5.2]
[1644645538473,0.03845149,96.18,96.12,15.6034]
[1644645538873,0.03845149,96.18,96.121,5.2]
[1644645540776,0.03845149,96.18,96.13,15.602]
[1644645540976,0.03845149,96.18,96.121,5.2]
[1644645540977,5.199,96.179,96.121,5.2]
[1644645541179,5.199,96.186,96.121,5.2]
[1644645541400,5.2,96.178,96.111,40.39366071]
[1644645541582,5.2,96.185,96.111,64.33386071]
[1644645541777,62.369912,96.187,96.111,64.33386071]
[1644645541778,5.2,96.186,96.111,64.33386071]
[1644645542980,5.2,96.186,96.111,23.9402]
[1644645543182,5.2,96.186,96.062,75.8939]
[1644645543183,15.0,96.18,96.074,1.47143434]
[1644645543480,0.03845149,96.17,96.07,15.0]
[1644645543682,15.0,96.16,96.059,1.47143434]
[1644645543882,15.65125149,96.15,96.05,1.47143434]
[1644645544088,23.7719,96.149,96.06,37.56796026]
[1644645544282,24.0748,96.148,96.06,37.56796026]
[1644645544483,5.202,96.147,96.06,37.56796026]
[1644645545083,42.01856289,96.129,96.06,37.56796026]
[1644645545284,28.8302,96.128,96.06,37.56796026]
[1644645545484,28.8302,96.128,96.047,5.203]
[1644645545686,15.0,96.12,96.037,1.47143434]
[1644645545884,5.204,96.119,96.03,1.47143434]
[1644645546086,7.53866534,96.119,96.03,0.024]
[1644645546285,24.836,96.118,96.03,0.024]
[1644645546487,5.204,96.117,96.03,44.94114548]
[1644645546689,7.53866534,96.117,96.03,44.91714548]
[1644645546886,35.83998378,96.099,96.03,44.94114548]
[1644645547086,5.204,96.098,96.03,44.91714548]
[1644645547387,35.83998378,96.099,96.03,44.91714548]
[1644645547785,35.83998378,96.099,96.031,5.204]
[1644645547786,5.204,96.098,96.031,5.204]
[1644645550209,5.204,96.098,96.03,44.91714548]
[1644645551413,35.83998378,96.099,96.031,5.204]
[1644645557014,15.0,96.11,96.031,5.204]
[1644645557213,22.7415,96.115,96.04,15.6168]
[1644645557415,22.7415,96.115,96.05,15.0]
[1644645557614,0.03845149,96.14,96.05,15.0]
[1644645557814,0.03845149,96.16,96.051,5.203]
[1644645558013,39.48616523,96.157,96.052,1.47143434]
[1644645558214,24.4048,96.156,96.053,29.9976]
[1644645558413,29.6068,96.156,96.053,29.9976]
[1644645558613,15.6121,96.15,96.07,15.6109]
[1644645558815,5.202,96.149,96.071,44.51524311]
[1644645559516,5.202,96.149,96.072,23.4093]
[1644645559713,5.202,96.149,96.073,5.202]
[1644645559920,24.4048,96.156,96.08,15.6102]
[1644645560215,24.4048,96.156,96.08,30.6102]
[1644645560414,24.4048,96.156,96.081,7.58366791]
[1644645560816,24.4048,96.156,96.081,5.2]
[1644645561316,5.2,96.155,96.072,23.4093]
[1644645561516,5.2,96.155,96.071,44.51524311]
[1644645561914,5.2,96.155,96.072,5.202]
[1644645562118,15.612,96.15,96.072,5.202]
[1644645562314,5.202,96.149,96.072,5.202]
[1644645562814,24.4048,96.156,96.073,22.7731]
[1644645563115,24.4048,96.156,96.074,5.202]
[1644645563317,5.202,96.155,96.073,22.7731]
[1644645563517,5.202,96.155,96.08,15.6103]
[1644645564719,24.4048,96.156,96.081,5.2]
[1644645564916,24.4048,96.156,96.09,15.6083]
[1644645565116,24.4048,96.156,96.091,5.2]
[1644645567322,5.2,96.155,96.09,15.6083]
[1644645569724,24.4048,96.156,96.091,5.2]
[1644645569927,5.2,96.154,96.075,5.2]
[1644645570123,24.4048,96.156,96.075,5.2]
[1644645570124,5.2,96.155,96.075,5.2]
[1644645570923,15.6121,96.15,96.075,5.2]
[1644645571126,5.202,96.149,96.075,5.2]
[1644645571523,5.202,96.155,96.075,5.2]
[1644645571926,15.614,96.14,96.075,5.2]
[1644645572125,5.202,96.155,96.075,5.2]
[1644645572424,5.202,96.155,96.076,23.417]
[1644645572825,24.4048,96.156,96.076,23.417]
[1644645572826,24.4048,96.156,96.08,15.6099]
[1644645573027,0.03845149,96.16,96.09,15.0]
[1644645573225,0.03845149,96.17,96.091,23.417]
[1644645573423,0.03845149,96.17,96.091,28.617]
[1644645574026,0.03845149,96.18,96.091,28.617]
[1644645574827,0.03845149,96.18,96.11,15.604]
[1644645575027,0.03845149,96.18,96.111,70.03364618]
[1644645576728,0.03845149,96.18,96.12,15.6044]
[1644645576929,0.03845149,96.18,96.121,5.2]
[1644645577832,0.03845149,96.18,96.13,15.6028]
[1644645578030,23.4906,96.189,96.13,15.6028]
[1644645578432,23.4906,96.189,96.131,5.199]
[1644645579231,23.4906,96.189,96.14,15.6011]
[1644645579431,23.4906,96.189,96.141,40.20663668]
[1644645579630,23.4906,96.189,96.141,45.40563668]
[1644645579831,23.4906,96.189,96.141,40.20663668]
[1644645580032,23.4906,96.189,96.142,5.199]
[1644645582633,23.4906,96.189,96.141,45.40563668]
[1644645583935,23.4906,96.189,96.141,40.20663668]
[1644645586437,5.199,96.188,96.141,40.20663668]
[1644645587744,23.4906,96.189,96.141,40.20663668]
[1644645590048,5.199,96.188,96.141,40.20663668]
[1644645592664,23.4906,96.189,96.141,40.20663668]
[1644645594265,23.4906,96.189,96.123,5.199]
[1644645594466,5.199,96.188,96.123,5.199]
[1644645594665,5.199,96.188,96.122,24.7183]
[1644645595266,5.199,96.188,96.122,70.36589265]
[1644645597665,23.4906,96.189,96.122,70.36589265]
[1644645598868,5.199,96.188,96.122,70.36589265]
[1644645599066,5.199,96.188,96.123,5.199]
[1644645599269,23.4906,96.189,96.123,5.199]
[1644645600869,23.4906,96.189,96.13,15.6024]
[1644645602570,0.03845149,96.21,96.13,15.6024]
[1644645602771,22.8987,96.219,96.13,30.6024]
[1644645603571,47.43544321,96.218,96.13,30.6024]
[1644645604673,0.03845149,96.22,96.137,1.47143434]
[1644645604878,0.03845149,96.23,96.175,1.47143434]
[1644645605074,0.03845149,96.22,96.18,15.0]
[1644645605277,5.197,96.293,96.181,25.86583434]
[1644645605476,0.03790607,96.25,96.185,1.47143434]
[1644645605678,0.03790607,96.28,96.2,15.0]
[1644645605878,5.195,96.279,96.201,24.3944]
[1644645606077,22.683,96.278,96.201,24.3944]
[1644645606277,5.195,96.277,96.201,24.36719598]
[1644645607481,5.195,96.277,96.201,29.56219598]
[1644645608481,5.195,96.277,96.201,24.36719598]
[1644645610083,5.195,96.277,96.202,2.38366791]
[1644645610285,15.5929,96.27,96.202,2.38366791]
[1644645610484,5.195,96.269,96.153,1.47143434]
[1644645610686,0.03789052,96.26,96.149,5.195]
[1644645610888,0.03789052,96.26,96.14,21.66743434]
[1644645610889,5.197,96.259,96.14,21.66743434]
[1644645611084,0.03789052,96.25,96.14,20.196]
[1644645611284,0.03789052,96.25,96.141,43.53724919]
[1644645611585,15.5989,96.24,96.141,43.53724919]
[1644645611784,0.03789052,96.23,96.141,43.53724919]
[1644645611985,34.82505088,96.228,96.141,43.53724919]
[1644645612184,0.03789052,96.22,96.141,43.53724919]
[1644645612485,5.198,96.219,96.141,43.53724919]
[1644645613083,5.198,96.219,96.142,2.38366791]
[1644645613283,0.03789052,96.22,96.146,1.47143434]
[1644645613487,29.741,96.257,96.16,15.0]
[1644645613886,29.741,96.257,96.161,5.197]
[1644645614085,29.741,96.257,96.161,7.58066791]
[1644645614284,39.96991479,96.256,96.162,26.54786791]
[1644645614484,39.96991479,96.256,96.181,44.16300106]
[1644645614684,39.96991479,96.256,96.182,5.196]
[1644645615988,5.196,96.255,96.181,44.16300106]
[1644645617889,5.196,96.255,96.19,15.5928]
[1644645618089,39.96991479,96.256,96.191,5.196]
[1644645619088,5.196,96.255,96.181,44.16300106]
[1644645620187,2.33466534,96.254,96.181,44.16300106]
[1644645620391,5.196,96.253,96.181,44.16300106]
[1644645621588,15.5961,96.25,96.181,44.16300106]
[1644645622388,39.96991479,96.256,96.181,44.16300106]
[1644645622589,5.196,96.255,96.181,44.16300106]
[1644645622988,5.196,96.255,96.181,49.35900106]
[1644645623191,5.196,96.255,96.181,5.196]
[1644645623392,115.33466534,96.254,96.181,5.196]
[1644645623597,5.196,96.253,96.164,23.2373]
[1644645623917,0.03799661,96.25,96.164,23.2373]
[1644645624094,5.197,96.249,96.164,23.2373]
[1644645624292,0.03799661,96.25,96.166,45.79996971]
[1644645624492,0.03799661,96.25,96.167,5.197]
[1644645624893,0.03799661,96.25,96.17,15.0]
[1644645625093,0.03799661,96.25,96.171,5.196]
[1644645625294,0.03799661,96.25,96.18,15.5935]
[1644645625495,5.196,96.249,96.18,15.5935]
[1644645625695,39.96991479,96.256,96.18,15.5935]
[1644645625696,0.03799661,96.25,96.18,15.5935]
[1644645625896,5.196,96.249,96.18,15.5935]
[1644645626098,0.03799661,96.25,96.18,15.5935]
[1644645626296,39.96991479,96.256,96.18,15.5935]
[1644645626497,39.96991479,96.256,96.18,30.5935]
[1644645627899,5.196,96.255,96.18,30.5935]
[1644645628100,5.196,96.255,96.18,15.0]
[1644645628500,23.2255,96.254,96.18,15.0]
[1644645628701,15.596,96.25,96.181,5.196]
[1644645629899,5.196,96.249,96.18,15.0]
[1644645630099,15.5976,96.24,96.166,45.79996971]
[1644645630298,5.197,96.239,96.166,45.79996971]
[1644645630502,5.197,96.248,96.166,45.79996971]
[1644645630700,5.197,96.249,96.166,45.79996971]
[1644645631901,15.5975,96.24,96.166,45.79996971]
[1644645632101,30.0719,96.239,96.166,45.79996971]
[1644645632701,30.0719,96.239,96.167,1.47143434]
[1644645632899,30.0719,96.239,96.168,1.47143434]
[1644645633106,30.0719,96.239,96.17,15.5961]
[1644645633302,30.0719,96.239,96.166,45.79996971]
[1644645634506,24.8749,96.239,96.167,5.197]
[1644645634706,5.197,96.238,96.166,47.27140405]
[1644645634906,15.5991,96.23,96.166,47.27140405]
[1644645635105,5.197,96.229,96.166,47.27140405]
[1644645635507,5.197,96.229,96.166,45.79996971]
[1644645635707,5.197,96.229,96.166,47.27140405]
[1644645636106,5.197,96.229,96.166,45.79996971]
[1644645636306,5.197,96.229,96.166,5.197]
[1644645636510,15.6006,96.22,96.166,5.197]
[1644645636710,15.6006,96.22,96.145,1.47143434]
[1644645636906,15.6006,96.22,96.11,15.0]
[1644645636907,23.3099,96.219,96.143,1.47143434]
[1644645637113,53.0921,96.219,96.139,1.47143434]
[1644645637313,36.24313562,96.218,96.14,46.29964244]
[1644645637512,5.198,96.217,96.14,46.29964244]
[1644645637911,15.6046,96.2,96.14,46.29964244]
[1644645639138,15.6046,96.2,96.142,1.47143434]
[1644645639536,15.6046,96.2,96.14,47.77107678]
[1644645639937,15.6046,96.2,96.141,1.47143434]
[1644645640137,5.199,96.199,96.14,47.77107678]
[1644645640334,5.199,96.199,96.14,46.29964244]
[1644645643339,5.199,96.199,96.134,1.47143434]
[1644645643639,24.1171,96.198,96.135,5.199]
[1644645643839,24.1171,96.198,96.123,22.9785]
[1644645643840,5.199,96.197,96.132,1.47143434]
[1644645644241,5.199,96.197,96.133,5.199]
[1644645644439,5.199,96.197,96.134,42.23411356]
[1644645644639,24.1171,96.198,96.136,1.47143434]
[1644645644939,24.1171,96.198,96.137,6.67043434]
[1644645645139,24.1171,96.198,96.137,1.47143434]
[1644645645439,24.1171,96.198,96.138,5.199]
[1644645646743,5.199,96.197,96.137,1.47143434]
[1644645647344,5.199,96.197,96.136,1.47143434]
[1644645649147,15.6055,96.19,96.136,1.47143434]
[1644645649349,5.199,96.189,96.13,1.47143434]
[1644645649547,5.199,96.189,96.118,1.47143434]
[1644645649747,0.03799661,96.19,96.115,1.47143434]
[1644645649946,5.2,96.188,96.115,1.47143434]
[1644645650149,5.2,96.188,96.105,22.7127]
[1644645650150,5.2,96.189,96.116,1.47143434]
[1644645650347,5.2,96.187,96.117,42.84343845]
[1644645650550,23.6994,96.186,96.117,42.84343845]
[1644645651050,5.2,96.185,96.117,42.84343845]
[1644645651852,15.6077,96.18,96.117,42.84343845]
[1644645652450,5.2,96.179,96.113,1.47143434]
[1644645653453,5.2,96.179,96.114,43.97047532]
[1644645655759,15.6088,96.17,96.114,43.97047532]
[1644645656160,5.2,96.169,96.101,1.47143434]
[1644645656362,28.8584,96.169,96.1,1.47143434]
[1644645656564,28.8584,96.169,96.098,1.47143434]
[1644645656565,23.6584,96.169,96.098,1.47143434]
[1644645656760,5.2,96.168,96.096,1.47143434]
[1644645657160,23.6584,96.169,96.097,34.41000413]
[1644645657561,23.6584,96.169,96.1,1.47143434]
[1644645657762,15.612,96.16,96.1,1.47143434]
[1644645658066,23.6584,96.169,96.102,1.47143434]
[1644645658464,23.6584,96.169,96.104,1.47143434]
[1644645658761,23.6584,96.169,96.108,1.47143434]
[1644645658965,45.51292959,96.168,96.109,5.2]
[1644645659165,50.71292959,96.168,96.105,1.47143434]
[1644645659562,50.71292959,96.168,96.101,1.47143434]
[1644645660164,50.71292959,96.168,96.1,1.47143434]
[1644645660370,50.71292959,96.168,96.099,1.47143434]
[1644645660569,15.6107,96.16,96.099,1.47143434]
[1644645660765,15.6107,96.16,96.104,1.47143434]
[1644645660963,45.51292959,96.168,96.104,1.47143434]
[1644645661164,45.51292959,96.168,96.105,6.67143434]
[1644645661366,45.51292959,96.168,96.107,1.47143434]
[1644645661565,45.51292959,96.168,96.106,1.47143434]
[1644645661765,45.51292959,96.168,96.107,5.2]
[1644645662168,45.51292959,96.168,96.107,6.67143434]
[1644645662366,45.51292959,96.168,96.108,1.47143434]
[1644645662567,45.51292959,96.168,96.109,5.2]
[1644645663570,45.51292959,96.168,96.11,1.47143434]
[1644645663868,45.51292959,96.168,96.112,1.47143434]
[1644645664070,45.51292959,96.168,96.113,5.2]
[1644645664869,15.6106,96.16,96.113,5.2]
[1644645665294,5.2,96.159,96.113,5.2]
[1644645666291,15.6106,96.16,96.106,1.47143434]
[1644645666491,15.6106,96.16,96.105,1.47143434]
[1644645666691,15.6106,96.16,96.106,1.47143434]
[1644645666894,15.6106,96.16,96.105,1.47143434]
[1644645667094,15.6106,96.16,96.106,1.47143434]
[1644645667294,15.6106,96.16,96.105,1.47143434]
[1644645667796,15.6106,96.16,96.106,1.47143434]
[1644645667995,5.2,96.159,96.099,1.47143434]
[1644645668197,15.6137,96.15,96.099,1.47143434]
[1644645668398,5.2,96.149,96.085,1.47143434]
[1644645668598,5.2,96.149,96.084,1.47143434]
[1644645668797,2.33466534,96.149,96.077,1.47143434]
[1644645669097,2.33466534,96.149,96.048,35.15335032]
[1644645669098,15.6149,96.14,96.07,0.024]
[1644645669297,36.43163178,96.138,96.07,0.024]
[1644645669495,5.202,96.137,96.05,0.024]
[1644645669696,7.53666534,96.137,96.05,0.024]
[1644645670096,2.33466534,96.136,96.05,0.024]
[1644645670298,5.203,96.135,96.05,0.024]
[1644645670599,15.6208,96.12,96.05,0.024]
[1644645670909,7.53766534,96.119,96.03,0.024]
[1644645671198,24.1017,96.118,96.04,0.024]
[1644645671397,15.6258,96.1,96.03,0.024]
[1644645671602,15.6258,96.1,96.025,1.47143434]
[1644645671603,63.83169869,96.099,96.025,1.47143434]
[1644645671798,63.83169869,96.099,96.026,1.47143434]
[1644645671998,63.83169869,96.099,96.023,51.23284353]
[1644645672811,15.6234,96.08,96.023,5.204]
[1644645673108,5.205,96.079,96.023,5.204]
[1644645673307,7.53966534,96.098,96.023,5.204]
[1644645673707,2.33466534,96.097,96.023,5.204]
[1644645673908,5.205,96.096,96.02,0.024]
[1644645674309,15.6292,96.07,96.02,0.024]
[1644645674510,15.6292,96.07,95.99,0.024]
[1644645674707,24.8086,96.079,95.99,0.024]
[1644645674708,32.12606534,96.069,95.99,0.024]
[1644645674908,29.7914,96.069,95.973,5.206]
[1644645675111,29.7914,96.069,95.98,0.024]
[1644645675308,47.69394852,96.068,95.98,0.024]
[1644645675509,15.6307,96.05,95.981,5.207]
[1644645675910,15.6307,96.05,95.98,0.024]
[1644645676113,24.0541,96.049,95.98,0.024]
[1644645676310,29.2611,96.049,95.97,0.024]
[1644645677512,15.6335,96.03,95.971,5.207]
[1644645677711,15.6335,96.03,95.97,0.024]
[1644645677712,5.208,96.029,95.97,0.024]
[1644645677911,5.208,96.029,95.919,23.8308]
[1644645677912,5.208,96.029,95.95,0.024]
[1644645678112,5.208,96.039,95.954,5.208]
[1644645678314,24.0541,96.049,95.956,42.45448272]
[1644645678315,46.73027751,96.038,95.956,42.45448272]
[1644645678511,46.73027751,96.038,95.96,0.024]
[1644645678714,15.6379,96.02,95.961,5.208]
[1644645679914,15.6379,96.02,95.95,0.024]
[1644645680112,15.6379,96.02,95.942,5.208]
[1644645680316,5.208,96.019,95.95,0.024]
[1644645680515,15.6384,96.0,95.945,5.208]